[Event "30th Cracovia Festival-B 2019"]
[Site "Krakow"]
[Date "2019.12.30"]
[Round "5.25"]
[White "Swider, Pawel"]
[Black "Sharma Isha"]
[Result "0-1"]
[ECO "A32"]
[WhiteElo "1803"]
[BlackElo "2099"]
[Annotator "NA"]
[PlyCount "86"]
[EventDate "2019.12.27"]
[EventCountry "POL"]
[SourceTitle "playchess.com"]
[Source "ChessBase"]
[SourceQuality "1"]
[TimeControl "40/5400+30:1800+30"]

1. d4 Nf6 2. Nf3 c5 3. c4 cxd4 4. Nxd4 e6 5. Nc3 Qb6 6. e3 Bb4 7. Bd2 O-O 8. Bd3 Nc6 9. Nxc6 dxc6 10. a3 Be7 11. Qc2 e5 12. O-O-O Be6 13. h3 Rfd8 14. Ne4 Nd7 15. g4 g6 16. f4 f5 17. gxf5 Bxf5 18. c5 Bxc5 19. Nxc5 Qxc5 20. Bxf5 gxf5 21. Rhg1+ Kf7 22. Bc3 Qxe3+ 23. Kb1 Qe4 24. Qxe4 fxe4 25. fxe5 Nc5 26. Rdf1+ Ke6 27. Rf6+ Kd5 28. Kc2 Kc4 29. Re1 Rd3 30. Rh6 Rg8 31. Rxe4+ Nxe4 32. b3+ Kd5 33. Kxd3 Rg3+ 34. Kc2 Rxc3+ 35. Kb2 Re3 36. Rxh7 Nc5 37. b4 Na4+ 38. Kc2 b5 39. h4 Rxe5 40. h5 Kc4 41. h6 Re2+ 42. Kd1 Nc3+ 43. Kc1 Kb3 0-1

[Event "30th Cracovia Festival-B 2019"]
[Site "Krakow"]
[Date "2019.12.30"]
[Round "5.26"]
[White "Hasterok, Mateusz"]
[Black "Bogdanov, Ignat"]
[Result "1/2-1/2"]
[ECO "A61"]
[WhiteElo "2018"]
[BlackElo "2082"]
[Annotator "NA"]
[PlyCount "106"]
[EventDate "2019.12.27"]
[EventCountry "POL"]
[SourceTitle "playchess.com"]
[Source "ChessBase"]
[SourceQuality "1"]
[TimeControl "40/5400+30:1800+30"]

1. d4 {[%emt 0:00:00]} Nf6 {[%emt 0:00:00]} 2. c4 {[%emt 0:00:00]} c5 {[%emt 0:00:00]} 3. d5 {[%emt 0:00:00]} e6 {[%emt 0:00:00]} 4. Nc3 {[%emt 0:00:00]} exd5 {[%emt 0:00:00]} 5. cxd5 {[%emt 0:00:00]} d6 {[%emt 0:00:22]} 6. Nf3 {[%emt 0:00:00]} g6 {[%emt 0:00:19]} 7. Bf4 {[%emt 0:00:00]} Bg7 {[%emt 0:01:46]} 8. Qa4+ {[%emt 0:00:30]} Bd7 {[%emt 0:09:14]} 9. Qb3 {[%emt 0:01:48]} Qc7 {[%emt 0:01:53]} 10. Nd2 {[%emt 0:11:41]} Nh5 {[%emt 0:04:30]} 11. Be3 {[%emt 0:06:09]} O-O {[%emt 0:04:24]} 12. Nce4 {[%emt 0:11:45]} f5 {[%emt 0:18:43]} 13. g4 {[%emt 0:00:23]} fxe4 {[%emt 0:03:41]} 14. gxh5 {[%emt 0:05:05]} Bf5 {[%emt 0:00:42]} 15. hxg6 {[%emt 0:02:58]} hxg6 {[%emt 0:01:04]} 16. Nc4 {[%emt 0:07:21]} Nd7 {[%emt 0:06:47]} 17. Bf4 {[%emt 0:02:32]} Ne5 {[%emt 0:00:20]} 18. Bxe5 {[%emt 0:02:31]} Bxe5 {[%emt 0:00:07]} 19. Nxe5 {[%emt 0:00:20]} dxe5 {[%emt 0:00:02]} 20. e3 {[%emt 0:01:31]} Qd6 {[%emt 0:00:32]} 21. O-O-O {[%emt 0:06:14]} Rfb8 {[%emt 0:02:21]} 22. Bg2 {[%emt 0:01:50]} c4 {[%emt 0:03:09]} 23. Qc2 {[%emt 0:02:25]} Rc8 {[%emt 0:00:37]} 24. Bxe4 {[%emt 0:03:28]} c3 {[%emt 0:00:46]} 25. b4 {[%emt 0:00:09]} Qxb4 {[%emt 0:06:38]} 26. Bxf5 {[%emt 0:00:34]} gxf5 {[%emt 0:00:01]} 27. Rdg1+ {[%emt 0:04:39]} Kh8 {[%emt 0:00:02]} 28. Rg5 {[%emt 0:01:17]} e4 {[%emt 0:01:14]} 29. Qb3 {[%emt 0:09:41]} Qxb3 {[%emt 0:03:23]} 30. axb3 {[%emt 0:00:01]} Rc7 {[%emt 0:02:22]} 31. Rxf5 {[%emt 0:00:46]} a5 {[%emt 0:00:29]} 32. Rh5+ {[%emt 0:00:21]} Rh7 {[%emt 0:01:07]} 33. Rxh7+ {[%emt 0:00:04]} Kxh7 {[%emt 0:00:01]} 34. Kc2 {[%emt 0:00:13]} Kg7 {[%emt 0:00:47]} 35. Kxc3 {[%emt 0:00:11]} a4 {[%emt 0:00:06]} 36. bxa4 {[%emt 0:00:12]} Rxa4 {[%emt 0:00:02]} 37. Rb1 {[%emt 0:00:10]} Kf6 {[%emt 0:00:32]} 38. Rxb7 {[%emt 0:01:31]} Ke5 {[%emt 0:00:25]} 39. Rf7 {[%emt 0:00:57]} Kxd5 {[%emt 0:00:26]} 40. h4 {[%emt 0:00:00]} Ra1 {[%emt 0:00:00]} 41. Rf4 {[%emt 0:07:38]} Ke5 {[%emt 0:05:46]} 42. f3 {[%emt 0:08:08]} Ra3+ {[%emt 0:06:50]} 43. Kd2 {[%emt 0:00:05]} Ra2+ {[%emt 0:00:05]} 44. Ke1 {[%emt 0:00:26]} exf3 {[%emt 0:00:19]} 45. Rxf3 {[%emt 0:00:21]} Ke4 {[%emt 0:00:08]} 46. Rh3 {[%emt 0:00:12]} Kf5 {[%emt 0:00:07]} 47. Rf3+ {[%emt 0:02:07]} Ke4 {[%emt 0:00:34]} 48. Rf2 {[%emt 0:00:32]} Ra3 {[%emt 0:00:57]} 49. Kf1 {[%emt 0:07:04]} Kxe3 {[%emt 0:02:08]} 50. Kg2 {[%emt 0:00:10]} Ra4 {[%emt 0:00:20]} 51. Rf3+ {[%emt 0:00:06]} Ke2 {[%emt 0:00:05]} 52. Rh3 {[%emt 0:00:29]} Rg4+ {[%emt 0:00:08]} 53. Kh2 {[%emt 0:00:17]} Kf2 1/2-1/2

[Event "30th Cracovia Festival-B 2019"]
[Site "Krakow"]
[Date "2019.12.30"]
[Round "5.27"]
[White "Gorkiewicz, Mateusz"]
[Black "Lutsko, Artem"]
[Result "0-1"]
[ECO "B42"]
[WhiteElo "1964"]
[BlackElo "2005"]
[Annotator "NA"]
[PlyCount "86"]
[EventDate "2019.12.27"]
[EventCountry "POL"]
[SourceTitle "playchess.com"]
[Source "ChessBase"]
[SourceQuality "1"]
[TimeControl "40/5400+30:1800+30"]

1. e4 c5 2. Nf3 e6 3. d4 cxd4 4. Nxd4 a6 5. Bd3 Qb6 6. Nb3 Nf6 7. O-O d6 8. Nc3 Be7 9. Kh1 O-O 10. f4 Nc6 11. Qf3 Bd7 12. Bd2 Qc7 13. Rae1 Rfe8 14. g4 g6 15. g5 Nh5 16. Ne2 d5 17. e5 Ng7 18. Qh3 b5 19. Rg1 Nf5 20. Bxf5 exf5 21. Ned4 Nxd4 22. Nxd4 Qc4 23. Be3 Qxa2 24. b3 Qa5 25. e6 fxe6 26. Nf3 Qc7 27. Ne5 Bf8 28. Bd4 Bg7 29. Rg3 Bc8 30. Rc3 Qb7 31. b4 a5 32. bxa5 b4 33. Rb3 Rxa5 34. Qg2 Ra2 35. Reb1 Qc7 36. R3b2 Rxb2 37. Rxb2 Bxe5 38. Bxe5 Qc4 39. Qf2 d4 40. Bxd4 Rd8 41. c3 bxc3 42. Rb8 Rxd4 43. Qxd4 Qxd4 0-1

[Event "30th Cracovia Festival-B 2019"]
[Site "Krakow"]
[Date "2019.12.30"]
[Round "5.28"]
[White "Golenia, Wojciech"]
[Black "Palamarchuk, Andriy"]
[Result "0-1"]
[ECO "A06"]
[WhiteElo "2093"]
[BlackElo "1899"]
[Annotator "NA"]
[PlyCount "84"]
[EventDate "2019.12.27"]
[EventCountry "POL"]
[SourceTitle "playchess.com"]
[Source "ChessBase"]
[SourceQuality "1"]
[TimeControl "40/5400+30:1800+30"]

1. Nf3 {[%emt 0:00:07]} d5 {[%emt 0:00:00]} 2. g3 {[%emt 0:02:20]} Bg4 {[%emt 0:00:00]} 3. Bg2 {[%emt 0:00:54]} Nf6 {[%emt 0:00:00]} 4. c4 {[%emt 0:05:24]} e6 {[%emt 0:00:00]} 5. Qb3 {[%emt 0:02:54]} Nbd7 {[%emt 0:35:40]} 6. d4 {[%emt 0:08:28]} b6 {[%emt 0:04:47]} 7. Ne5 {[%emt 0:05:11]} c6 {[%emt 0:06:04]} 8. Bg5 {[%emt 0:12:36]} Nxe5 {[%emt 0:01:08]} 9. dxe5 {[%emt 0:01:02]} h6 {[%emt 0:00:04]} 10. Bxf6 {[%emt 0:17:54]} gxf6 {[%emt 0:00:08]} 11. Qa4 {[%emt 0:02:39]} Qd7 {[%emt 0:02:04]} 12. exf6 {[%emt 0:01:24]} Bd6 {[%emt 0:10:52]} 13. Nc3 {[%emt 0:08:36]} Be5 {[%emt 0:01:03]} 14. O-O {[%emt 0:02:10]} Bxc3 {[%emt 0:01:08]} 15. bxc3 {[%emt 0:03:42]} Bxe2 {[%emt 0:03:18]} 16. cxd5 {[%emt 0:00:08]} cxd5 {[%emt 0:03:39]} 17. Qxd7+ {[%emt 0:00:02]} Kxd7 {[%emt 0:00:07]} 18. Rfe1 {[%emt 0:00:32]} Bc4 {[%emt 0:00:56]} 19. a4 {[%emt 0:01:16]} Rhg8 {[%emt 0:03:32]} 20. Re3 {[%emt 0:05:35]} Rg6 21. Rf3 Rc8 {[%emt 0:04:38]} 22. Rf4 {[%emt 0:02:25]} Bd3 {[%emt 0:04:10]} 23. a5 {[%emt 0:04:20]} b5 {[%emt 0:06:02]} 24. Bf3 {[%emt 0:00:42]} e5 {[%emt 0:07:26]} 25. Bg4+ {[%emt 0:01:17]} Kd6 {[%emt 0:01:13]} 26. Bxc8 {[%emt 0:01:41]} exf4 {[%emt 0:00:05]} 27. f3 {[%emt 0:01:03]} fxg3 {[%emt 0:00:44]} 28. hxg3 {[%emt 0:00:14]} Rxg3+ {[%emt 0:00:25]} 29. Kf2 {[%emt 0:00:06]} Rg6 {[%emt 0:00:23]} 30. Rd1 {[%emt 0:03:09]} Bc2 {[%emt 0:01:47]} 31. Rc1 {[%emt 0:00:14]} Ba4 {[%emt 0:00:16]} 32. Re1 {[%emt 0:00:40]} Rxf6 {[%emt 0:00:06]} 33. Re8 {[%emt 0:00:38]} b4 34. Re3 {[%emt 0:01:54]} b3 {[%emt 0:01:40]} 35. Re1 {[%emt 0:00:00]} Kc7 {[%emt 0:02:13]} 36. Bh3 {[%emt 0:00:27]} Kd6 {[%emt 0:00:15]} 37. Rd1 {[%emt 0:02:20]} Bb5 {[%emt 0:00:15]} 38. Ke3 {[%emt 0:01:20]} Kc5 {[%emt 0:00:08]} 39. Rb1 {[%emt 0:00:51]} Bc4 {[%emt 0:00:06]} 40. Ra1 {[%emt 0:00:00]} Rg6 {[%emt 0:00:00]} 41. Bg4 {[%emt 0:02:05]} Rg5 {[%emt 0:02:07]} 42. Rh1 {[%emt 0:04:39]} Re5+ {[%emt 0:00:19]} 0-1

[Event "30th Cracovia Festival-B 2019"]
[Site "Krakow"]
[Date "2019.12.30"]
[Round "5.29"]
[White "Slezinski, Nikodem"]
[Black "Gondzik, Dawid"]
[Result "1-0"]
[ECO "B24"]
[WhiteElo "2005"]
[BlackElo "2045"]
[Annotator "NA"]
[PlyCount "89"]
[EventDate "2019.12.27"]
[EventCountry "POL"]
[SourceTitle "playchess.com"]
[Source "ChessBase"]
[SourceQuality "1"]
[TimeControl "40/5400+30:1800+30"]

1. e4 {[%emt 0:00:00]} c5 {[%emt 0:00:10]} 2. Nc3 {[%emt 0:00:00]} Nc6 {[%emt 0:00:54]} 3. Bb5 {[%emt 0:00:00]} e6 {[%emt 0:00:32]} 4. Bxc6 {[%emt 0:00:00]} bxc6 {[%emt 0:00:15]} 5. d3 {[%emt 0:00:58]} d6 {[%emt 0:05:49]} 6. f4 {[%emt 0:02:06]} g6 {[%emt 0:04:31]} 7. Nf3 {[%emt 0:00:24]} Bg7 {[%emt 0:02:14]} 8. O-O {[%emt 0:02:54]} Nh6 {[%emt 0:06:39]} 9. e5 {[%emt 0:03:32]} O-O {[%emt 0:03:31]} 10. Ne4 {[%emt 0:11:20]} dxe5 {[%emt 0:15:01]} 11. fxe5 {[%emt 0:00:58]} Ng4 {[%emt 0:04:42]} 12. Bf4 {[%emt 0:21:00]} f6 {[%emt 0:14:55]} 13. exf6 {[%emt 0:06:35]} Nxf6 {[%emt 0:00:09]} 14. Bg5 {[%emt 0:02:39]} Qb6 {[%emt 0:01:18]} 15. Nxf6+ {[%emt 0:00:11]} Bxf6 {[%emt 0:00:09]} 16. Bxf6 {[%emt 0:00:25]} Rxf6 {[%emt 0:00:11]} 17. Ne5 {[%emt 0:09:27]} Rf5 {[%emt 0:04:31]} 18. Ng4 {[%emt 0:07:18]} Kg7 {[%emt 0:00:47]} 19. Qd2 {[%emt 0:11:33]} Qd8 {[%emt 0:09:06]} 20. Qh6+ {[%emt 0:02:21]} Kg8 {[%emt 0:01:38]} 21. Qh3 {[%emt 0:03:14]} Kg7 {[%emt 0:00:24]} 22. Qh6+ {[%emt 0:04:25]} Kg8 {[%emt 0:00:02]} 23. Ne3 {[%emt 0:01:21]} Rf8 {[%emt 0:03:28]} 24. Rxf8+ {[%emt 0:00:25]} Qxf8 {[%emt 0:00:07]} 25. Qg5 {[%emt 0:00:09]} Ba6 {[%emt 0:05:29]} 26. Rf1 {[%emt 0:00:48]} Qd6 {[%emt 0:00:36]} 27. Ng4 {[%emt 0:01:33]} Rf8 {[%emt 0:02:49]} 28. Rxf8+ {[%emt 0:00:54]} Qxf8 {[%emt 0:00:12]} 29. Nf6+ {[%emt 0:00:18]} Kg7 {[%emt 0:04:22]} 30. Nh5+ {[%emt 0:00:11]} Kg8 {[%emt 0:00:24]} 31. Nf6+ {[%emt 0:00:01]} Kg7 {[%emt 0:00:13]} 32. Nd7 {[%emt 0:00:25]} Qd6 {[%emt 0:03:43]} 33. Nxc5 {[%emt 0:02:59]} Bc8 {[%emt 0:01:48]} 34. h4 {[%emt 0:03:34]} Qd4+ {[%emt 0:01:52]} 35. Kh2 {[%emt 0:01:02]} Qxb2 {[%emt 0:02:06]} 36. Qe7+ {[%emt 0:01:12]} Kg8 {[%emt 0:02:40]} 37. Qd8+ {[%emt 0:01:19]} Kg7 {[%emt 0:00:32]} 38. Qc7+ {[%emt 0:00:36]} Kh6 {[%emt 0:00:13]} 39. Qf4+ {[%emt 0:00:15]} Kg7 {[%emt 0:00:07]} 40. d4 {[%emt 0:00:00]} Qc3 {[%emt 0:00:00]} 41. Qc7+ {[%emt 0:01:15]} Kh6 {[%emt 0:01:05]} 42. Qxc8 {[%emt 0:00:36]} Qxd4 {[%emt 0:00:17]} 43. Qf8+ {[%emt 0:00:06]} Kh5 {[%emt 0:00:19]} 44. Qf3+ {[%emt 0:00:12]} Kh6 {[%emt 0:01:26]} 45. Nxe6 {[%emt 0:00:30]} 1-0

[Event "30th Cracovia Festival-B 2019"]
[Site "Krakow"]
[Date "2019.12.30"]
[Round "5.30"]
[White "Reprun, Nadejda"]
[Black "Kucharski, Bartlomiej"]
[Result "0-1"]
[ECO "B06"]
[WhiteElo "1975"]
[BlackElo "2024"]
[Annotator "NA"]
[PlyCount "110"]
[EventDate "2019.12.27"]
[EventCountry "POL"]
[SourceTitle "playchess.com"]
[Source "ChessBase"]
[SourceQuality "1"]
[TimeControl "40/5400+30:1800+30"]

1. e4 d6 2. d4 g6 3. Nc3 Bg7 4. Be3 c6 5. Qd2 b5 6. a3 Nf6 7. Bh6 O-O 8. Bxg7 Kxg7 9. Nf3 Qa5 10. Bd3 Bg4 11. O-O Bxf3 12. gxf3 e5 13. dxe5 dxe5 14. f4 Nbd7 15. Qe3 Rad8 16. Be2 exf4 17. Qxf4 Rfe8 18. b4 Qb6 19. Rad1 Ne5 20. Rxd8 Qxd8 21. Rd1 Qe7 22. h3 Qe6 23. Kh2 Nc4 24. Rd4 Nxa3 25. Rd6 Qe5 26. Qxe5 Rxe5 27. Bd3 Re6 28. Rxe6 fxe6 29. f4 Nd7 30. Kg3 e5 31. Ne2 Kf6 32. Ng1 c5 33. bxc5 Nxc5 34. fxe5+ Kxe5 35. Nf3+ Kf6 36. Kf4 Nxd3+ 37. cxd3 Nc2 38. e5+ Ke7 39. Ke4 b4 40. d4 a5 41. Kd3 Na3 42. d5 b3 43. Kc3 a4 44. d6+ Kd7 45. Nd2 Nb5+ 46. Kb2 Nd4 47. Ne4 Ke6 48. Ng5+ Kxe5 49. d7 Nc6 50. Nxh7 Kf5 51. h4 Ke6 52. Ng5+ Kxd7 53. Ne4 Ke6 54. Nc5+ Kf5 55. Nxa4 Na5 0-1

[Event "30th Cracovia Festival-B 2019"]
[Site "Krakow"]
[Date "2019.12.30"]
[Round "5.31"]
[White "Mikula, Michal"]
[Black "Wojdak, Jan"]
[Result "1-0"]
[ECO "B20"]
[WhiteElo "1821"]
[BlackElo "2017"]
[Annotator "NA"]
[PlyCount "113"]
[EventDate "2019.12.27"]
[EventCountry "POL"]
[SourceTitle "playchess.com"]
[Source "ChessBase"]
[SourceQuality "1"]
[TimeControl "40/5400+30:1800+30"]

1. e4 {[%emt 0:00:00]} c5 {[%emt 0:00:00]} 2. b4 {[%emt 0:00:23]} d6 {[%emt 0:01:20]} 3. bxc5 {[%emt 0:09:47]} dxc5 {[%emt 0:02:27]} 4. Nf3 {[%emt 0:00:11]} Nc6 {[%emt 0:00:03]} 5. Bc4 {[%emt 0:00:37]} e6 {[%emt 0:00:14]} 6. O-O {[%emt 0:06:12]} Nf6 {[%emt 0:00:58]} 7. d3 {[%emt 0:01:23]} Be7 {[%emt 0:00:22]} 8. Bb2 {[%emt 0:03:51]} O-O {[%emt 0:01:14]} 9. a4 {[%emt 0:00:19]} a6 {[%emt 0:06:06]} 10. Nbd2 {[%emt 0:03:17]} Qc7 {[%emt 0:00:22]} 11. Re1 {[%emt 0:12:31]} b6 {[%emt 0:18:27]} 12. h3 {[%emt 0:02:06]} Bb7 {[%emt 0:01:20]} 13. Nh2 {[%emt 0:01:16]} e5 {[%emt 0:05:38]} 14. Ndf1 {[%emt 0:03:35]} Na5 {[%emt 0:01:24]} 15. Ne3 {[%emt 0:01:55]} Rad8 {[%emt 0:06:51]} 16. Nhg4 {[%emt 0:04:20]} Nxc4 {[%emt 0:05:17]} 17. Nxc4 {[%emt 0:00:47]} Nxg4 {[%emt 0:01:00]} 18. Qxg4 {[%emt 0:00:13]} Rd4 {[%emt 0:24:02]} 19. Bxd4 {[%emt 0:02:56]} cxd4 {[%emt 0:00:06]} 20. Qf5 {[%emt 0:06:49]} Re8 {[%emt 0:04:39]} 21. Qxe5 {[%emt 0:08:35]} Qxe5 {[%emt 0:00:39]} 22. Nxe5 {[%emt 0:00:05]} Bb4 {[%emt 0:00:03]} 23. Reb1 {[%emt 0:00:07]} Bc3 {[%emt 0:00:21]} 24. Nc4 {[%emt 0:04:58]} Bxa1 {[%emt 0:01:38]} 25. Rxa1 {[%emt 0:01:36]} Bc6 {[%emt 0:03:09]} 26. Nxb6 {[%emt 0:01:05]} Rb8 {[%emt 0:00:33]} 27. a5 {[%emt 0:00:23]} Kf8 {[%emt 0:00:16]} 28. Rb1 {[%emt 0:00:45]} Rd8 {[%emt 0:00:23]} 29. Kf1 {[%emt 0:00:18]} Ke7 {[%emt 0:00:05]} 30. Rb4 {[%emt 0:00:43]} Ke6 {[%emt 0:01:06]} 31. Rc4 {[%emt 0:02:49]} Bb5 {[%emt 0:00:11]} 32. Rc5 {[%emt 0:00:09]} Rd6 {[%emt 0:00:48]} 33. f4 {[%emt 0:00:40]} g6 {[%emt 0:00:04]} 34. Re5+ {[%emt 0:01:04]} Kf6 {[%emt 0:00:05]} 35. Rxb5 {[%emt 0:00:08]} Rc6 {[%emt 0:00:14]} 36. Nd5+ {[%emt 0:00:35]} Kg7 {[%emt 0:00:03]} 37. Rb2 {[%emt 0:01:25]} Rc5 {[%emt 0:00:06]} 38. Ra2 {[%emt 0:09:25]} f5 {[%emt 0:00:14]} 39. Ke2 {[%emt 0:00:07]} Rc6 {[%emt 0:00:16]} 40. e5 {[%emt 0:00:00]} g5 {[%emt 0:00:00]} 41. Kf3 {[%emt 0:04:33]} Kf7 {[%emt 0:00:24]} 42. Nb6 {[%emt 0:01:24]} Kg6 {[%emt 0:00:08]} 43. Ra4 {[%emt 0:02:30]} Rxc2 {[%emt 0:00:12]} 44. Rxd4 {[%emt 0:00:12]} gxf4 {[%emt 0:00:29]} 45. Rxf4 {[%emt 0:00:42]} Rc3 {[%emt 0:00:09]} 46. Rd4 {[%emt 0:00:33]} Kg5 {[%emt 0:00:13]} 47. e6 {[%emt 0:00:30]} Kf6 {[%emt 0:00:04]} 48. Nd5+ {[%emt 0:00:12]} Ke5 {[%emt 0:00:08]} 49. Nxc3 {[%emt 0:00:07]} Kxd4 {[%emt 0:00:07]} 50. Ne2+ {[%emt 0:00:13]} Ke5 {[%emt 0:00:04]} 51. e7 {[%emt 0:00:07]} Kd5 {[%emt 0:00:08]} 52. e8=Q {[%emt 0:00:13]} f4 {[%emt 0:00:05]} 53. Nxf4+ {[%emt 0:00:15]} Kc5 {[%emt 0:00:07]} 54. Qe4 {[%emt 0:00:29]} Kb5 {[%emt 0:00:06]} 55. Qc4+ {[%emt 0:00:12]} Kxa5 {[%emt 0:00:03]} 56. Nd5 {[%emt 0:00:10]} h6 {[%emt 0:00:05]} 57. Qb4# 1-0

[Event "30th Cracovia Festival-B 2019"]
[Site "Krakow"]
[Date "2019.12.30"]
[Round "5.32"]
[White "Widla, Piotr"]
[Black "Trybus, Daniel"]
[Result "0-1"]
[ECO "A45"]
[WhiteElo "2014"]
[BlackElo "1862"]
[Annotator "NA"]
[PlyCount "152"]
[EventDate "2019.12.27"]
[EventCountry "POL"]
[SourceTitle "playchess.com"]
[Source "ChessBase"]
[SourceQuality "1"]
[TimeControl "40/5400+30:1800+30"]

1. d4 Nf6 2. Bf4 g6 3. Nd2 c5 4. e3 Bg7 5. Ngf3 O-O 6. Be2 d6 7. h3 Nbd7 8. O-O Qb6 9. Nc4 Qc7 10. a4 b6 11. c3 Ba6 12. Ncd2 Bb7 13. Rc1 Rac8 14. Re1 e5 15. dxe5 dxe5 16. Bh2 Qc6 17. Bb5 Qe6 18. e4 Rfd8 19. Ng5 Qe7 20. Bc4 Rf8 21. Qb3 h6 22. Nxf7 Rxf7 23. Bxf7+ Qxf7 24. Qxf7+ Kxf7 25. Nc4 Ke6 26. Rcd1 Ba6 27. Nd6 Rd8 28. f4 exf4 29. Bxf4 Nh5 30. Bh2 Be5 31. Bxe5 Nxe5 32. Nb5 Rxd1 33. Rxd1 Bxb5 34. axb5 Nf6 35. Ra1 Nxe4 36. Rxa7 Nd6 37. Ra6 Nd7 38. Ra4 Nxb5 39. Rh4 h5 40. g4 Ne5 41. Kg2 hxg4 42. hxg4 Nd3 43. b4 c4 44. g5 Ne5 45. Rh3 Kf5 46. Kf2 Ke4 47. Ke2 Nf7 48. Rh4+ Kd5 49. Kd2 Nbd6 50. Rd4+ Ke5 51. Rg4 Kf5 52. Rg1 Nxg5 53. Ke3 Nde4 54. Ra1 Ke5 55. Rg1 b5 56. Rg4 Kf6 57. Rf4+ Ke5 58. Rg4 Ke6 59. Rg1 Kf5 60. Rf1+ Kg4 61. Rg1+ Ng3 62. Ra1 Nf5+ 63. Ke2 Ne4 64. Rc1 g5 65. Rg1+ Neg3+ 66. Kf2 Kf4 67. Rc1 g4 68. Kg2 Ne3+ 69. Kh2 Ne4 70. Kg1 g3 71. Kh1 Nd2 72. Rg1 g2+ 73. Kh2 Nf3+ 74. Kh3 Nxg1+ 75. Kh2 Nf3+ 76. Kh3 g1=N# 0-1

[Event "30th Cracovia Festival-B 2019"]
[Site "Krakow"]
[Date "2020.01.03"]
[Round "8.25"]
[White "Lutsko, Artem"]
[Black "Swider, Pawel"]
[Result "1-0"]
[ECO "D12"]
[WhiteElo "2005"]
[BlackElo "1803"]
[Annotator "NA"]
[PlyCount "69"]
[EventDate "2019.12.27"]
[EventCountry "POL"]
[SourceTitle "playchess.com"]
[Source "ChessBase"]
[SourceQuality "1"]
[TimeControl "40/5400+30:1800+30"]

1. d4 {[%emt 0:00:00]} d5 {[%emt 0:00:00]} 2. c4 {[%emt 0:00:00]} c6 {[%emt 0:00:00]} 3. Nf3 {[%emt 0:00:05]} Nf6 {[%emt 0:00:00]} 4. e3 {[%emt 0:00:05]} Bf5 {[%emt 0:00:43]} 5. Nc3 {[%emt 0:00:08]} e6 {[%emt 0:00:15]} 6. Nh4 {[%emt 0:00:08]} Bg6 {[%emt 0:00:19]} 7. Nxg6 {[%emt 0:00:25]} hxg6 {[%emt 0:00:06]} 8. a3 {[%emt 0:00:26]} Bd6 {[%emt 0:01:26]} 9. g3 {[%emt 0:01:46]} Nbd7 {[%emt 0:00:55]} 10. c5 {[%emt 0:00:15]} Bc7 {[%emt 0:00:28]} 11. b4 {[%emt 0:01:23]} e5 {[%emt 0:05:47]} 12. Bg2 {[%emt 0:00:54]} Qe7 {[%emt 0:03:56]} 13. Kf1 {[%emt 0:05:37]} e4 {[%emt 0:06:39]} 14. Bd2 {[%emt 0:02:20]} Qe6 {[%emt 0:02:03]} 15. h4 {[%emt 0:04:02]} Ng4 {[%emt 0:04:35]} 16. Bh3 {[%emt 0:03:16]} Ndf6 {[%emt 0:01:28]} 17. Kg2 {[%emt 0:00:54]} Qf5 {[%emt 0:03:36]} 18. Qe2 {[%emt 0:00:43]} g5 {[%emt 0:05:26]} 19. hxg5 {[%emt 0:02:56]} Qxg5 {[%emt 0:02:34]} 20. Bxg4 {[%emt 0:00:07]} Rxh1 {[%emt 0:00:16]} 21. Rxh1 {[%emt 0:00:00]} Nxg4 {[%emt 0:08:51]} 22. Rh8+ {[%emt 0:00:04]} Ke7 {[%emt 0:00:12]} 23. Rxa8 {[%emt 0:00:03]} Bd8 {[%emt 0:00:06]} 24. f3 {[%emt 0:04:43]} exf3+ {[%emt 0:01:15]} 25. Qxf3 {[%emt 0:00:06]} Qh5 {[%emt 0:01:34]} 26. Rxa7 {[%emt 0:06:08]} f5 {[%emt 0:03:52]} 27. Rxb7+ {[%emt 0:01:00]} Ke8 {[%emt 0:00:56]} 28. Ne2 {[%emt 0:04:38]} g6 {[%emt 0:02:42]} 29. b5 {[%emt 0:02:07]} Qh2+ {[%emt 0:08:32]} 30. Kf1 {[%emt 0:00:05]} Bg5 {[%emt 0:01:18]} 31. Qg2 {[%emt 0:01:36]} Qh5 {[%emt 0:01:59]} 32. bxc6 {[%emt 0:01:37]} Nf6 {[%emt 0:11:00]} 33. Rb8+ {[%emt 0:01:15]} Kf7 {[%emt 0:00:36]} 34. c7 {[%emt 0:00:30]} Ne4 {[%emt 0:01:41]} 35. Ke1 {[%emt 0:01:32]} 1-0

[Event "30th Cracovia Festival-B 2019"]
[Site "Krakow"]
[Date "2020.01.03"]
[Round "8.26"]
[White "Palamarchuk, Andriy"]
[Black "Sharma Isha"]
[Result "0-1"]
[ECO "C47"]
[WhiteElo "1899"]
[BlackElo "2099"]
[Annotator "NA"]
[PlyCount "108"]
[EventDate "2019.12.27"]
[EventCountry "POL"]
[SourceTitle "playchess.com"]
[Source "ChessBase"]
[SourceQuality "1"]
[TimeControl "40/5400+30:1800+30"]

1. e4 {[%emt 0:00:19]} e5 {[%emt 0:00:00]} 2. Nf3 {[%emt 0:00:07]} Nc6 {[%emt 0:00:00]} 3. Nc3 {[%emt 0:00:06]} Nf6 {[%emt 0:00:12]} 4. d4 {[%emt 0:00:09]} exd4 {[%emt 0:01:33]} 5. Nxd4 {[%emt 0:00:05]} Bb4 {[%emt 0:00:22]} 6. Nxc6 {[%emt 0:00:11]} bxc6 {[%emt 0:00:09]} 7. Bd3 {[%emt 0:00:04]} O-O {[%emt 0:02:54]} 8. O-O {[%emt 0:03:46]} d5 {[%emt 0:05:30]} 9. exd5 {[%emt 0:04:39]} cxd5 {[%emt 0:01:50]} 10. Bg5 {[%emt 0:00:17]} c6 {[%emt 0:02:48]} 11. Qf3 {[%emt 0:14:06]} Be7 {[%emt 0:01:12]} 12. h3 {[%emt 0:00:06]} h6 {[%emt 0:04:33]} 13. Bf4 {[%emt 0:00:26]} Bd6 {[%emt 0:00:51]} 14. Ne2 {[%emt 0:00:21]} Rb8 {[%emt 0:03:01]} 15. Nd4 {[%emt 0:27:25]} Qc7 {[%emt 0:00:25]} 16. Bxd6 {[%emt 0:11:10]} Qxd6 {[%emt 0:00:05]} 17. Qg3 {[%emt 0:05:06]} Qxg3 {[%emt 0:02:39]} 18. fxg3 {[%emt 0:00:04]} c5 {[%emt 0:01:19]} 19. Nc6 {[%emt 0:02:33]} Rxb2 {[%emt 0:00:17]} 20. Rab1 {[%emt 0:01:04]} Rxb1 {[%emt 0:02:42]} 21. Rxb1 {[%emt 0:00:04]} c4 {[%emt 0:02:29]} 22. Rb8 {[%emt 0:01:59]} cxd3 {[%emt 0:02:36]} 23. cxd3 {[%emt 0:02:30]} Kh7 {[%emt 0:01:40]} 24. Nxa7 {[%emt 0:00:14]} Re8 {[%emt 0:03:33]} 25. Nxc8 {[%emt 0:05:34]} Nd7 {[%emt 0:02:26]} 26. Ra8 {[%emt 0:00:05]} Nc5 {[%emt 0:02:49]} 27. d4 {[%emt 0:00:06]} Nd3 {[%emt 0:00:09]} 28. Nb6 {[%emt 0:00:54]} Re1+ {[%emt 0:00:13]} 29. Kh2 {[%emt 0:00:03]} Rd1 {[%emt 0:18:31]} 30. Ra4 {[%emt 0:04:45]} h5 {[%emt 0:01:21]} 31. Nxd5 {[%emt 0:01:02]} g5 {[%emt 0:06:38]} 32. Ra6 {[%emt 0:02:48]} g4 {[%emt 0:09:02]} 33. Nf6+ {[%emt 0:04:39]} Kh8 {[%emt 0:00:06]} 34. Ra8+ {[%emt 0:00:04]} Kg7 {[%emt 0:00:03]} 35. Nxh5+ {[%emt 0:00:06]} Kh6 {[%emt 0:00:08]} 36. Rh8+ {[%emt 0:00:04]} Kg5 {[%emt 0:00:05]} 37. h4+ {[%emt 0:00:08]} Kf5 {[%emt 0:00:08]} 38. Rf8 {[%emt 0:00:20]} Kg6 {[%emt 0:02:04]} 39. Rg8+ {[%emt 0:05:56]} Kxh5 {[%emt 0:00:09]} 40. Rg5+ {[%emt 0:00:00]} Kh6 {[%emt 0:00:00]} 41. Rf5 {[%emt 0:00:04]} Kg6 {[%emt 0:00:19]} 42. Rg5+ {[%emt 0:00:04]} Kh6 {[%emt 0:03:09]} 43. Rf5 {[%emt 0:00:15]} Kg7 {[%emt 0:00:04]} 44. a4 {[%emt 0:03:26]} f6 {[%emt 0:00:35]} 45. h5 {[%emt 0:00:22]} Kf7 {[%emt 0:00:28]} 46. a5 {[%emt 0:00:42]} Ke6 {[%emt 0:00:24]} 47. Rf4 {[%emt 0:01:05]} Nxf4 {[%emt 0:00:06]} 48. gxf4 {[%emt 0:00:02]} Rxd4 {[%emt 0:00:07]} 49. Kg3 {[%emt 0:00:04]} f5 {[%emt 0:00:13]} 50. Kh4 {[%emt 0:01:12]} Kf6 {[%emt 0:00:05]} 51. h6 {[%emt 0:00:05]} Rd7 {[%emt 0:00:31]} 52. Kh5 {[%emt 0:00:10]} Ra7 {[%emt 0:00:21]} 53. a6 {[%emt 0:00:31]} Rd7 {[%emt 0:00:07]} 54. g3 {[%emt 0:01:55]} Rd2 {[%emt 0:00:08]} 0-1